Workbook

Sheet GRAPHS
B2: 30M -1 HR | C2: Average Time on Site (S) | D2: Unique Visitors | E2: Nbr of Visits | F2: Total Pages | G2: Bounce Rate
A3: JAN | B3: 9.9 | C3: 1122 | D3: 50 | E3: 483 | F3: 17856 | G3: 0.53
A4: FEB | B4: 13.8 | C4: 902 | D4: 110 | E4: 440 | F4: 5127 | G4: 0.56
A5: MAR | B5: 9.8 | C5: 612 | D5: 179 | E5: 700 | F5: 3522 | G5: 0.71
A6: APRIL | B6: 5.6 | C6: 491 | D6: 703 | E6: 1387 | F6: 11950 | G6: 0.79
A7: MAY | B7: 2.5 | C7: 349 | D7: 2318 | E7: 5840 | F7: 27053 | G7: 0.81
A8: JUNE | B8: 3.5 | C8: 254 | D8: 1933 | E8: 5503 | F8: 19235 | G8: 0.83
A9: JULY | B9: 3.7 | C9: 282 | D9: 1452 | E9: 4520 | F9: 13298 | G9: 0.84
A10: AUG | B10: 1.8 | C10: 139 | D10: 6139 | E10: 11630 | F10: 24924 | G10: 0.92
A11: SEP | B11: 2.5 | C11: 150 | D11: 4739 | E11: 12461 | F11: 26125 | G11: 0.91
A12: OCT | B12: 3 | C12: 179 | D12: 9544 | E12: 22021 | F12: 39201 | G12: 0.86
A13: NOV | B13: 4.4 | C13: 252 | D13: 9645 | E13: 23546 | F13: 44374 | G13: 0.84
A14: DEC | B14: 3.8 | C14: 257 | D14: 8171 | E14: 22081 | F14: 47227 | G14: 0.83
A15: JAN | B15: 4.9 | C15: 338 | D15: 7853 | E15: 30200 | F15: 169463 | G15: 0.75
A16: FEB | B16: 6 | C16: 461 | D16: 7130 | E16: 36152 | F16: 144497 | G16: 0.71
A17: MAR | B17: 3 | C17: 211 | D17: 9977 | E17: 29326 | F17: 80284 | G17: 0.88
A18: APRIL | B18: 3.1 | C18: 200 | D18: 7466 | E18: 24208 | F18: 60548 | G18: 0.86
A19: MAY | B19: 3.1 | C19: 173 | D19: 9045 | E19: 31659 | F19: 93457 | G19: 0.86
A20: JUNE | B20: 1.8 | C20: 144 | D20: 7742 | E20: 24915 | F20: 98029 | G20: 0.89
A21: JULY | B21: 1.7 | C21: 130 | D21: 8349 | E21: 22902 | F21: 89517 | G21: 0.89
A22: AUG | B22: 2.4 | C22: 160 | D22: 7839 | E22: 27632 | F22: 104547 | G22: 0.87
A23: SEP | B23: 2.5 | C23: 167 | D23: 15927 | E23: 49544 | F23: 160931 | G23: 0.84
A24: OCT | B24: 3.1 | C24: 177 | D24: 20942 | E24: 85024 | F24: 297019 | G24: 0.84
A25: NOV | B25: 3.6 | C25: 238 | D25: 22932 | E25: 94046 | F25: 328201 | G25: 0.9
A26: DEC | B26: 2.9 | C26: 194 | D26: 21644 | E26: 79866 | F26: 259386 | G26: 0.89
A27: JAN | B27: 4.8 | C27: 387 | D27: 24840 | E27: 82612 | F27: 329953 | G27: 0.794
A28: FEB
A29: MAR
A30: APRIL
A31: MAY
A32: JUNE
A33: JULY
A34: AUG
A35: SEP
A36: OCT
A37: NOV
A38: DEC
B41: 2015-02-05
A42: INTRA | B42: =YEAR(B41) -> 2015
A43: DAY | B43: =MONTH(B41) -> 2
B44: =DAY(B41) -> 5 | C44: =DAY(DATE(B42,B43+1,1)-1) -> 28 | D44: 6112 | E44: 12745 | F44: 35293
D45: Unique Visits | E45: Total Visits | F45: Total Pages
C46: =(C44/B44) -> 5.6 | D46: =D44*C46 -> 34227.2 | E46: =E44*C46 -> 71372 | F46: =F44*C46 -> 197640.8
C47: =-COUNT(B3:B39) -> -25 | D47: =SUM(D3:D40)+D44 -> 222781 | E47: =SUM(E3:E40)+E44 -> 741443 | F47: =SUM(F3:F40)+F44 -> 2531017

Sheet 3 YEAR PROJECTED VISITORS
E1: MONTH | F1: VALUE
E2: 1 | F2: 12461 | J2: =SUM(LINEST($F$2:F14,$E$2:E14)*{15,1}) -> 38311.43956
B3: PROJECTION USING LINEST | E3: 2 | F3: 22021 | J3: =SUM(LINEST($F$2:F15,$E$2:E15)*{16,1}) -> 54779.47473
C4: (Use for Unique Visitors or # Visitors) Use after acquiring 14 data points. | E4: 3 | F4: 23546 | G4: `` | J4: =SUM(LINEST($F$2:F16,$E$2:E16)*{17,1}) -> 69762.49524
C5: (Simply paste in 1st 14 months of data) | E5: 4 | F5: 22081 | J5: =SUM(LINEST($F$2:F17,$E$2:E17)*{18,1}) -> 77323.58676
C6: This assumes similar & continued attention to your web site efforts | E6: 5 | F6: 30200 | J6: =SUM(LINEST($F$2:F18,$E$2:E18)*{19,1}) -> 83803.45588
C7: with a linear progression. | E7: 6 | F7: 36152 | J7: =SUM(LINEST($F$2:F19,$E$2:E19)*{20,1}) -> 87547.71551
E8: 7 | F8: 29326 | J8: =SUM(LINEST($F$2:F20,$E$2:E20)*{21,1}) -> 91893.29307
E9: 8 | F9: 24208 | J9: =SUM(LINEST($F$2:F21,$E$2:E21)*{22,1}) -> 96113.51925
E10: 9 | F10: 31659 | J10: =SUM(LINEST($F$2:F22,$E$2:E22)*{23,1}) -> 100358.5923
E11: 10 | F11: 24915 | J11: =SUM(LINEST($F$2:F23,$E$2:E23)*{24,1}) -> 104598.971
E12: 11 | F12: 22902 | J12: =SUM(LINEST($F$2:F24,$E$2:E24)*{25,1}) -> 108840.1969
E13: 12 | F13: 27632 | J13: =SUM(LINEST($F$2:F25,$E$2:E25)*{26,1}) -> 113081.2765
E14: 13 | F14: 49544 | J14: =SUM(LINEST($F$2:F26,$E$2:E26)*{27,1}) -> 117322.3804
E15: 14 | F15: 85024 | J15: =SUM(LINEST($F$2:F27,$E$2:E27)*{28,1}) -> 121563.4803
E16: 15 | F16: 94046 | J16: =SUM(LINEST($F$2:F28,$E$2:E28)*{29,1}) -> 125804.5809
E17: 16 | F17: 79866 | J17: =SUM(LINEST($F$2:F29,$E$2:E29)*{30,1}) -> 130045.6814
E18: 17 | F18: 82612 | J18: =SUM(LINEST($F$2:F30,$E$2:E30)*{31,1}) -> 134286.7819
E19: 18 | F19: =J5 -> 77323.58676 | J19: =SUM(LINEST($F$2:F31,$E$2:E31)*{32,1}) -> 138527.8823
E20: 19 | F20: 83803.45588 | J20: =SUM(LINEST($F$2:F32,$E$2:E32)*{33,1}) -> 142768.9828
E21: 20 | F21: 87547.71551 | J21: =SUM(LINEST($F$2:F33,$E$2:E33)*{34,1}) -> 147010.0833
E22: 21 | F22: 91893.29307 | J22: =SUM(LINEST($F$2:F34,$E$2:E34)*{35,1}) -> 151251.1838
E23: 22 | F23: 96113.51925 | J23: =SUM(LINEST($F$2:F35,$E$2:E35)*{36,1}) -> 155492.2843
E24: 23 | F24: 100358.5923
E25: 24 | F25: 104598.971
E26: 25 | F26: 108840.1969
E27: 26 | F27: 113081.2765
E28: 27 | F28: 117322.3804
E29: 28 | F29: 121563.4803
E30: 29 | F30: 125804.5809
E31: 30 | F31: 130045.6814
E32: 31 | F32: 134286.7819
E33: 32 | F33: 138527.8823
E34: 33 | F34: 142768.9828
E35: 34 | F35: 147010.0833
E36: 35 | F36: 151251.1838
E37: 36 | F37: 155492.2843
